Cogmind - Beta 9.3 @@@ ROGUE MODE // 2020.02.09 @ 14:04:10 Player: Dhoby_Ghaut Result: Self-destructed Performance ------------- Evolutions (2) 1000 Regions Visited (5) 1000 Robots Destroyed (16) 80 Value Destroyed (416) 416 Prototype IDs (0) 0 Alien Tech Used (0) 0 Bonus (117) 117 TOTAL SCORE: 2613 Bonus ------- Follower Combat Kills 166 Friendly Fire -49 Cogmind --------- Core Integrity 504/550 Matter 290/300 Energy 146/290 System Corruption 0% Temperature Cool (0) Movement Rolling (110) Ox1 Location -8/Materials Parts ------- > --- POWER (1) -------- Improved Deuterium Engine > --- PROPULSION (2) --- Armored Huge Wheel > --- UTILITY (5) ------ Large Storage Unit Large Storage Unit Improved Terrain Scan Processor Targeting Computer Hardlight Generator > --- WEAPON (3) ------- Assault Rifle Assault Rifle Light Assault Rifle > --- INVENTORY (16) --- Improved Deuterium Engine Micro Nuclear Core Makeshift Power Source Makeshift Leg Improved Heat Sink Compact Battery (300) Makeshift Terrain Scanner Makeshift Laser Plasma Cannon Plasma Cannon Missile Launcher Heavy Rocket Launcher Peak State ------------ > --- POWER ------------ Makeshift Power Source > --- PROPULSION ------- Armored Huge Wheel > --- UTILITY ---------- Large Storage Unit Makeshift Terrain Scanner Improved Terrain Scan Processor Targeting Computer Hardlight Generator > --- WEAPON ----------- Assault Rifle Assault Rifle > --- INVENTORY -------- Micro Nuclear Core Makeshift Leg Large Storage Unit Compact Battery Makeshift Laser Plasma Cannon Plasma Cannon Light Assault Rifle Grenade Launcher Heavy Rocket Launcher [Rating: 29] Favorites ----------- Power Makeshift Power Source Engine Makeshift Power Source Propulsion Wheel Wheel Wheel Hover Unit Backup Propulsion I Utility Large Storage Unit Device Hardlight Generator Storage Large Storage Unit Processor Targeting Computer Weapon Assault Rifle Ballistic Gun Assault Rifle Build | -11 -10 -10 -10 -9 -8 ------- Run | Scr Mat Min Exi Min Mat Slots Evolved 4 | . . . . . 4 Power . | . . . . . . Propulsion . | . . . . . . Utility 3 | . . . . . 3 Weapon 1 | . . . . . 1 Parts Attached 24 | 6 7 . 3 1 7 Power 4 | 1 1 . 1 . 1 Engine 4 | 1 1 . 1 . 1 Core . | . . . . . . Reactor . | . . . . . . Propulsion 4 | 2 1 . . 1 . Treads . | . . . . . . Leg . | . . . . . . Wheel 4 | 2 1 . . 1 . Hover . | . . . . . . Flight . | . . . . . . Utility 10 | 1 3 . 1 . 5 Device 2 | . . . . . 2 Storage 6 | 1 2 . 1 . 2 Processor 2 | . 1 . . . 1 Hackware . | . . . . . . Protection . | . . . . . . Artifact . | . . . . . . Weapon 6 | 2 2 . 1 . 1 Energy Gun . | . . . . . . Energy Cannon . | . . . . . . Ballistic Gun 6 | 2 2 . 1 . 1 Ballistic Cannon . | . . . . . . Launcher . | . . . . . . Special Weapon . | . . . . . . Impact Weapon . | . . . . . . Slashing Weapon . | . . . . . . Piercing Weapon . | . . . . . . Special Melee Weapon . | . . . . . . Unidentified Prototypes . | . . . . . . Parts Lost . | . . . . . . Power . | . . . . . . Propulsion . | . . . . . . Utility . | . . . . . . Weapon . | . . . . . . Highest Loss Streak . | . . . . . . Average Slot Usage (%) 93 | . 99 100 100 85 86 Engine 12 | . 14 14 14 14 9 Wheel 19 | . 27 28 28 14 9 Device 2 | . . . . . 9 Storage 15 | . 16 14 14 14 15 Processor 14 | . 10 14 14 14 17 Ballistic Gun 27 | . 28 28 28 28 26 Naked Turns . | . . . . . . Heaviest Build 46 | 12 25 25 25 24 46 Greatest Support 28 | 20 20 20 20 28 28 Greatest Overweight (x) 1 | . 1 1 1 1 1 Average Overweight (x) . | . . 1 1 . 1 Largest Inventory Capacity 16 | 6 10 10 10 10 16 Average Capacity 10 | 5 8 10 10 10 14 Most Carried 12 | 4 10 10 10 10 12 Average Carried 9 | 1 7 10 9 9 10 Final Capacity 16 | 6 10 10 10 10 16 Final Carried 12 | 4 10 10 10 10 12 Class Distribution -------------------- 59% | Mutant 16% | Gunner 14% | Commander-Mutant 9% | Commander-Gunner Dominant Class ---------------- Mutant | -10/Materials Mutant | -10/Mines Mutant | -10/Exiles Commander-Mutant | -9/Mines Gunner | -8/Materials Resources | -11 -10 -10 -10 -9 -8 ----------- Run | Scr Mat Min Exi Min Mat Matter Collected 806 | 227 215 70 . 66 228 Remotely . | . . . . . . Salvage Created 607 | . 224 30 . . 353 Parts 30 | . 11 3 . . 16 Haulers Intercepted . | . . . . . . Recyclers Shooed 1 | . 1 . . . . Parts Field Recycled . | . . . . . . Retrieved Matter . | . . . . . . Parts Self-Destructed . | . . . . . . Prevented . | . . . . . . Kills | -11 -10 -10 -10 -9 -8 ------- Run | Scr Mat Min Exi Min Mat Combat Hostiles Destroyed 14 | . 8 1 . . 5 Guns 14 | . 8 1 . . 5 Classes Destroyed 5 | . 3 . . . 2 Recycler 2 | . 1 . . . 1 Swarmer 6 | . 6 . . . . Grunt 5 | . 2 1 . . 2 Sentry 2 | . . . . . 2 Hunter 1 | . . . . . 1 Best Kill Streak 4 | . 4 1 . . 1 Combat Bots Only 3 | . 3 1 . . 1 Max Kills in Single Turn 2 | . 2 1 . . 1 Gunslinging 1 | . 1 . . . . Exploded . | . . . . . . Melee . | . . . . . . Uniques/NPCs Destroyed . | . . . . . . Combat | -11 -10 -10 -10 -9 -8 -------- Run | Scr Mat Min Exi Min Mat Damage Taken 801 | . 346 183 . . 272 Core 179 | . 97 36 . . 46 Absorbed by Shields 72 | . . . . . 72 Core Remaining (%) 73 | 100 . . . 46 . Volleys Fired 68 | . 28 16 . . 24 Largest 3 | . 2 2 . . 3 Hottest 60 | . 40 40 . . 60 Shots Fired 160 | . 56 32 . . 72 Gun 160 | . 56 32 . . 72 Cannon . | . . . . . . Launcher . | . . . . . . Special . | . . . . . . Kinetic 160 | . 56 32 . . 72 Thermal . | . . . . . . Explosive . | . . . . . . Electromagnetic . | . . . . . . Robot Hit Streak 8 | . 4 8 . . 8 Robot Miss Streak 7 | . 7 5 . . 4 Penetration Max . | . . . . . . Secondary Targets 5 | . 3 1 . . 1 Max Gunslinging Chain 1 | . 1 1 . . 1 Shots Hit Robots 98 | . 28 20 . . 50 Core Hits 33 | . 13 2 . . 18 Critical Hits 1 | . . . . . 1 Critical Kills . | . . . . . . Critical Parts Destroyed 1 | . . . . . 1 Melee Attacks . | . . . . . . Impact . | . . . . . . Slashing . | . . . . . . Piercing . | . . . . . . Sneak Attacks . | . . . . . . Combat Hostiles . | . . . . . . Follow-up Attacks . | . . . . . . Damage Inflicted 1069 | . 323 258 . . 488 Guns 1069 | . 323 258 . . 488 Cannons . | . . . . . . Explosions . | . . . . . . Melee . | . . . . . . Ramming . | . . . . . . Kinetic 1069 | . 323 258 . . 488 Thermal . | . . . . . . Explosive . | . . . . . . Electromagnetic . | . . . . . . Impact . | . . . . . . Slashing . | . . . . . . Piercing . | . . . . . . Highest Corruption . | . . . . . . Average Corruption . | . . . . . . Corruption Purged . | . . . . . . Overload Shots . | . . . . . . Overflow Damage . | . . . . . . Projectiles . | . . . . . . Explosions . | . . . . . . Melee . | . . . . . . Knockbacks . | . . . . . . Impact . | . . . . . . Kinetic . | . . . . . . Secondary . | . . . . . . Self-Inflicted Damage . | . . . . . . Shots . | . . . . . . Rammed . | . . . . . . Targets Rammed . | . . . . . . Kicked . | . . . . . . Crushed . | . . . . . . Highest Temperature 10 | . 6 10 . . 3 Average Temperature 4 | . 6 3 . . 3 Received Heat Transfer 223 | . 60 114 . . 49 Siege Activations . | . . . . . . Robots Corrupted . | . . . . . . Combat Hostiles . | . . . . . . Parts Fried . | . . . . . . Impact Corruptions . | . . . . . . Robots Melted . | . . . . . . Combat Hostiles . | . . . . . . Parts Melted . | . . . . . . Heat Transferred . | . . . . . . Parts Sabotaged . | . . . . . . Parts Stolen . | . . . . . . Parts Stripped . | . . . . . . Power Chain Reactions . | . . . . . . Missiles Intercepted . | . . . . . . Alert | -11 -10 -10 -10 -9 -8 ------- Run | Scr Mat Min Exi Min Mat Peak Influence 342 | . 235 39 . . 342 Average Influence 92 | . 133 36 . . 141 Maximum Alert Level 1 | . 1 . . . 1 Low Security (%) 80 | 100 56 100 . 100 79 Level 1 19 | . 43 . . . 20 Level 2 . | . . . . . . Level 3 . | . . . . . . Level 4 . | . . . . . . Level 5 . | . . . . . . High Security . | . . . . . . Max Security . | . . . . . . Squads Dispatched 3 | . 1 . . 1 1 Investigation 2 | . 1 . . 1 . Extermination . | . . . . . . Reinforcement 1 | . . . . . 1 Assault . | . . . . . . Garrison . | . . . . . . Intercept . | . . . . . . Construction Impeded . | . . . . . . Haulers Reinforced . | . . . . . . Stealth | -11 -10 -10 -10 -9 -8 --------- Run | Scr Mat Min Exi Min Mat Distress Signals . | . . . . . . Communications Jammed . | . . . . . . Distress Signals . | . . . . . . Times Spotted 29 | . 9 3 . . 17 Peak Tracking Total 4 | . 3 2 . . 4 Tactical Retreats 2 | . . 2 . . . Traps | -11 -10 -10 -10 -9 -8 ------- Run | Scr Mat Min Exi Min Mat Traps Triggered . | . . . . . . Indirectly . | . . . . . . Trap Hack Attempts . | . . . . . . Triggered . | . . . . . . Disarmed . | . . . . . . Reprogrammed . | . . . . . . Reused . | . . . . . . Traps Extracted . | . . . . . . Installed . | . . . . . . Triggered . | . . . . . . Machines | -11 -10 -10 -10 -9 -8 ---------- Run | Scr Mat Min Exi Min Mat Machines Disabled . | . . . . . . Max in Single Turn . | . . . . . . Garrison Access 1 | . . . . . 1 Machines Sabotaged . | . . . . . . Garrisons Compromised . | . . . . . . Overloaded Fab Kills . | . . . . . . Fab Network Shutdowns . | . . . . . . Hacking | -11 -10 -10 -10 -9 -8 --------- Run | Scr Mat Min Exi Min Mat Machines Accessed 12 | . 4 . 1 1 6 Terminals 8 | . 3 . . . 5 Fabricators . | . . . . . . Repair Stations 1 | . 1 . . . . Recycling Units . | . . . . . . Scanalyzers . | . . . . . . Garrison Access 1 | . . . . . 1 Total Hacks 44 | . 18 . 1 1 24 Successful 24 | . 12 . 1 1 10 Failed 19 | . 5 . . . 14 Catastrophic 1 | . . . . . 1 Database Lockouts 1 | . 1 . . . . Manual 24 | . 12 . . . 12 Terminals 36 | . 14 . . . 22 Fabricators . | . . . . . . Repair Stations 4 | . 4 . . . . Recycling Units . | . . . . . . Scanalyzers . | . . . . . . Garrison Access 2 | . . . . . 2 Terminal Hacks 14 | . 6 . 1 1 6 Record 1 | . . . 1 . . Part Schematic 1 | . 1 . . . . Open Door 1 | . . . . 1 . Branch Access Points 1 | . . . . . 1 Alert Level 2 | . 1 . . . 1 Unreport Threat 1 | . . . . . 1 Locate Traps 3 | . 1 . . . 2 Registered Components 1 | . 1 . . . . Zone Layout 3 | . 2 . . . 1 Fabricator Hacks . | . . . . . . Repair Station Hacks 3 | . 3 . . . . Scan Component 1 | . 1 . . . . Repair 1 | . 1 . . . . Refit 1 | . 1 . . . . Recycling Unit Hacks . | . . . . . . Scanalyzer . | . . . . . . Garrison Access Hacks 1 | . . . . . 1 Seal Access 1 | . . . . . 1 Unauthorized Hacks 17 | . 6 . . . 11 Terminals 6 | . 3 . . . 3 Track 2 | . 1 . . . 1 Botnet 4 | . 2 . . . 2 Fabricators . | . . . . . . Repair Stations . | . . . . . . Recycling Units . | . . . . . . Scanalyzers . | . . . . . . Garrison Access . | . . . . . . Data Cores Recovered . | . . . . . . Used . | . . . . . . Hacking Detections 9 | . 3 . . . 6 Full Trace Events . | . . . . . . Feedback Events . | . . . . . . Feedback Blocked . | . . . . . . Robot Schematics Acquired . | . . . . . . Robots Built . | . . . . . . Matter . | . . . . . . Time . | . . . . . . Total Robot Build Rating . | . . . . . . Part Schematics Acquired 1 | . 1 . . . . Parts Built . | . . . . . . Matter . | . . . . . . Time . | . . . . . . Total Part Build Rating . | . . . . . . Parts Repaired 1 | . 1 . . . . Time 26 | . 26 . . . . Parts Recycled . | . . . . . . Recycled Matter . | . . . . . . Retrieved Matter . | . . . . . . Retrieved Components . | . . . . . . Parts Scanalyzed . | . . . . . . Part Schematics Acquired . | . . . . . . Parts Damaged . | . . . . . . Bothacking | -11 -10 -10 -10 -9 -8 ------------ Run | Scr Mat Min Exi Min Mat Used RIF Installer . | . . . . . . Robots Hacked . | . . . . . . Non-combat . | . . . . . . Combat . | . . . . . . Robot Hacks Applied . | . . . . . . Relay Couplers Released . | . . . . . . Robots Rewired 3 | . . . 3 . . Allies Hacked . | . . . . . . Hacks Repelled . | . . . . . . Allies | -11 -10 -10 -10 -9 -8 -------- Run | Scr Mat Min Exi Min Mat Total Allies 6 | . . . 3 3 . Largest Group 6 | . . . 3 6 6 Highest-Rated Group 77 | . . . 37 77 77 Highest-Rated Ally 21 | . . . 21 21 21 Total Orders 2 | . . . . 2 . STAY 1 | . . . . 1 . FOLLOW 1 | . . . . 1 . Ally Attacks 65 | . . . . . 65 Total Damage 747 | . . . . . 747 Kills 9 | . . . . . 9 Allies Corrupted . | . . . . . . Allies Melted . | . . . . . . Intel | -11 -10 -10 -10 -9 -8 ------- Run | Scr Mat Min Exi Min Mat Robot Analysis Total . | . . . . . . Derelict Logs Recovered 3 | . . 1 . 2 . Drone Launches . | . . . . . . Drone Recoveries . | . . . . . . Exploration | -11 -10 -10 -10 -9 -8 ------------- Run | Scr Mat Min Exi Min Mat Turns Passed 2093 | 48 449 98 520 399 579 Spaces Moved 1808 | 45 376 53 531 361 442 Core 1 | 1 . . . . . Treads . | . . . . . . Legs . | . . . . . . Wheels 1807 | 44 376 53 531 361 442 Hover . | . . . . . . Flight . | . . . . . . Fastest Speed 50 | 50 80 90 90 90 110 Average Speed 95 | 79 86 90 90 99 110 Slowest Speed 110 | 80 90 90 90 100 110 Overloaded Moves . | . . . . . . Propulsion Burnouts . | . . . . . . Robots Hopped . | . . . . . . Cave-ins Triggered . | . . . . . . Exploration Rate (%) 47 | 4 52 19 88 90 33 Regions Visited 5 Branch Regions 3 Pre-discovered Areas 1 | . . . 1 . . Known Exits Taken 2 | . . . 1 1 . Unknown Exits Taken 3 | 1 1 1 . . . Scrap Searched 2 | . . 1 . 1 . Spaces Dug . | . . . . . . Terrain Destroyed . | . . . . . . Melee . | . . . . . . Projectile . | . . . . . . AOE . | . . . . . . Actions | -11 -10 -10 -10 -9 -8 --------- Run | Scr Mat Min Exi Min Mat Total 2036 | 54 450 71 573 403 485 Wait 71 | . 26 3 7 31 4 Move 1803 | 44 375 52 530 360 442 Hop . | . . . . . . Pick Up 23 | 4 7 . 3 4 5 Fast Attach 11 | 6 2 . . 1 2 Attach 3 | . . . . . 3 Detach 3 | . 1 . . 1 1 Swap 10 | . 5 . 3 . 2 Drop 18 | . 6 . 4 6 2 Fire 68 | . 28 16 . . 24 Melee . | . . . . . . Ram . | . . . . . . Kick . | . . . . . . Crush . | . . . . . . Escape Stasis . | . . . . . . Rewire 26 | . . . 26 . . Trap . | . . . . . . Miscellaneous . | . . . . . . Route ------- -11/Scrapyard -10/Materials (discovered 2 exits: [*Mat] / [*Min]) -10/Mines -10/Exiles (discovered 2 exits: *Min x2) -9/Mines -8/Materials (discovered 1 exit: Fac) History --------- Turn | Location | Event 21 | -11/Scrapyard | Discovered new exit (range 15) 49 | -11/Scrapyard | Entered Materials 170 | -10/Materials | Central database locked down 261 | -10/Materials | Discovered new exit (range 14) 313 | -10/Materials | Repaired Wheel 335 | -10/Materials | Build established: Mutant 379 | -10/Materials | Discovered new exit (range 12) 498 | -10/Materials | Entered Mines 527 | -10/Mines | Core integrity fell below 50% 593 | -10/Mines | Deemed a non-threat by the Exiles lab entrance 593 | -10/Mines | Discovered new exit (range 5) 596 | -10/Mines | Entered Exiles 596 | -10/Exiles | Found Exiles lab destroyed 597 | -10/Exiles | Identified exit to Mines 804 | -10/Exiles | Learned location of Zion (-7) 1116 | -10/Exiles | Entered Mines 1116 | -9/Mines | Accompanied by 3 allies 1127 | -9/Mines | Met a Derelict shopkeep closing up shop 1162 | -9/Mines | Learned location of 1 exit from Materials 1171 | -9/Mines | Met a Derelict bent on vengeance 1248 | -9/Mines | Identified exit to Materials 1257 | -9/Mines | Assisted by bots powering up and referring to "LRC-V3" 1515 | -9/Mines | Entered Materials 1515 | -8/Materials | Accompanied by 6 allies 1515 | -8/Materials | Evolved 4 slots: Utility x3, Weapon x1 1516 | -8/Materials | Identified exit to Factory 1560 | -8/Materials | Build established: Commander-Mutant 2054 | -8/Materials | Build established: Gunner 2094 | -8/Materials | Self-destructed Last Messages --------------- >>Trojan(Botnet) Trojan loaded successfully. Testing... Terminal linked with 1 system. Awaiting botnet instructions. >>Access(Branch) No branch access points found. [A new version of Cogmind is available, see F1 News page.] 01970_ Acquired Missile Launcher. 01994_ R-06 Scavenger collects Datajack. 01998_ R-06 Scavenger collects Hacking Suite. 02002_ R-06 Scavenger collects Hover Unit. 02019_ R-06 Scavenger collects Seismic Analyzer. 02027_ Acquired 7 matter. 02029_ R-06 Scavenger destroyed. 02030_ Acquired 6 matter. 02033_ Acquired 1 matter. 02063_ R-06 Scavenger collects Datajack. 02066_ R-06 Scavenger collects Hover Unit. 02070_ R-06 Scavenger collects Hacking Suite. Map ----- +----------------------------------------------------+ | ???????????? # """ #???# #?# ##+###### # | | ????????????# + """ #???# ######### ???# # | | ????????????# # """ #???# # =!! ## """ ?# + | | ????????????# # #???# # =! ## """ ## # | | ????????????# #########???# # =! ##] """ ## # | | ???????????? ########???# + ## + # | | ???????????? #???# # = ##% = ## # | | ??????????????????? #???# # ########?# ## | | ???????????????????? #???# #?######????????# #? | | ????????????????????# ##### ############????# #? | | ?????????????######## #"""# ## #????# #? | | ?????????????# # #"G"# ## ! #???## ## | | ?????????????# """^ + #" "# ## #???# # | | ?????????????# """ # # """ """ #???# T # | | ?????????????#^""" + + """ """ #???# # | | ?????????????# ^^ # T """ # """ """ #???## ## | | ?????????????# "T" # """ # ?????# #? | | ?????????????######## """ # #????# #? | | ?????????????????# ################ #? | | ?????????????#####+## % % % % %#? | | ?????????????# # % % % ! =#? | | ?????????????+ #% #? | | ?????????????# ! ! #%######## #? | | ?????????????# # % !!#??# #? | | ?????????????# # !!#??# ################!#? | | ?????????????# # @####+####???????###?#%#? | | ?????????????#####+## **## #??????##!!##!## | | ?????????????????# r !!## #??????#! ! # | | ?????????????????# % !!##""" #??????#! # | | ?????????????????# ######""" #??????#! # | | ?????????????????# %% #????#""" #??????#! ## ## | | ?????????????????# % #????# #??????##!!?# #? | | ?????????????????# #????########??########## ## | | ?????????????????#u #??????????????# [ # | | ?????????????????# #??????????????# # | | ?????????????????# #??????????????# / T | | ?????????????????# #??????????????# # | | ?????????????????# #??????????????# # | | ?????????????????# #??????????????# ###### | | ?????????????????# #??????????????########????? | | ?????????????????# ## #??????????????????????????? | | ????????????????# #? #??????????????????????????? | | ???? ????????????# #? #??????????????????????????? | | ??????????????# #? #??????????????????????????? | | #?????????????# #? #??????????????????????????? | | #?????????????# #? ??????????????????????????? | | #?? ??????????# #?##??????????????????????????? | | #???#?????????# #?????????????????????????????? | | #?#???????????# #?????????????????????????????? | | #?????????????# #?????????????????????????????? | +----------------------------------------------------+ Best States ------------- Heat Dissipation 31 Energy Generation 15 Energy Capacity 250 Matter Stores 300 Matter Capacity 350 Sight Range 16 Terrain Scan Range 18 Terrain Scan Density 110 Evasion (%) 44 Targeting Accuracy 5 Item Schematics ----------------- Med. Storage Unit | -10/Materials | Hacked Robot Schematics ------------------ None Fabricated ------------ Nothing Alien Tech Used ----------------- None Achievements -------------- None Challenges ------------ None Game ------ Seed UltimateNodeBoosters Manual? 0 Play Time 00:22:36 Cumulative 52.7 hours Start 2020.01.31 @ 22:29:26 End 2020.02.09 @ 14:04:10 Sessions 7 Manual Loads 0 Difficulty Rogue Special Mode None Game No. 43 Rogue 43 Adventurer 0 Explorer 0 Win Type - Total 7 Types 7/0/0/0/0/0/0 Lore% 65 Gallery% 64 Achievement% 50 Wizard Run 0 Options --------- ASCII 0 Keyboard 0 Movement Vi Keybinds 0 Fullscreen 2 Font 18/SmallcapsGlow Map View 76x50 Tactical HUD 1 Map Filters NONE Filters NONE Steam 0 RUN: 6b5d45ca-4973-496a-830c-8a279a60c79b